{"text_format":"1","workbook":"xlsx","n_sheets":6,"sheets":["INFO","Method_input","Method_calculation","Method_output","Alternative Calculation sheet","History"],"not_rendered":{"charts":0,"images":10,"macros":1,"external_links":0,"defined_names":22,"comments":2,"pivot_tables":0},"unopened":[],"bounds":{"document_bytes":16777216,"sheet_cells":100000,"rows_first":2000,"rows_last":500,"rows_between":2000,"halvings":0,"cell_chars":16384,"cell_head_chars":4096},"cells_cut":0,"cells_raw":0,"read":"whole","date_system":"1900"}

{"sheet":"INFO","index":0,"n_rows":34,"n_cols":1,"rows_kept":34,"cut":false,"hidden":false,"merged":[]}
["Draft spreadsheet, according to template for all EPB standards "]
["Concerns EPB standard:"]
["ISO/DIS 52022-1,Energy performance of buildings — Thermal, solar and daylight properties of building components and elements — Part 1: Simplified calculation method of the solar and daylight characteristics for solar protection devices combined with glazing"]
["Produced by the Project Leader for the preparation of this standard"]
[]
["DISCLAIMER:"]
["·         This spreadsheet has been developed in the framework of the preparation and revision of the set of EN or ISO standards on the energy performance of buildings, to support the European \"Energy Performance of Buildings Directive\" recast (EPBD-recast, directive 2010/31/EU). "]
["·         It is meant for use by  CEN and ISO technical committee(s) and the working group(s) working on the preparation or revision of the EPB-standard to which this spreadsheet applies. The spreadsheet supports checking  that all equations in the developed standard are consistent and can be linked with other relevant standards. It is not meant to perform a full or partial energy performance calculation."]
["·         The spreadsheet supports the expert user of the standards, in particular those who want to review the content of the standard and those who want to translate the standard to a software, to understand the correct interpretation of the equations and calculation steps in the standard."]
["·         Although it has been developed with care, neither the technical committee(s), nor the working group(s) and experts related to the EPB- standard to which this spreadsheet applies warrant that the calculations and procedures in this spreadsheet are free of errors. The technical committees as well as the working groups and their respective members expressly disclaim any liability or responsibility arising from use of this spreadsheet, or any consequences thereof. Any responsibility arising from the use of this spreadsheet lies with the user."]
["DRAFT VERSION:"]
["·         As long as the associated EPB standard or any of the other EPB standards to which it is directly linked are in a draft stage, this spreadsheet is also a draft version only."]
["WARNINGS: "]
["·         Note that the spreadsheet may not allow testing all calculation options that are possible according to the standard to which it applies. This remark applies in particular but not only to limitations on the number instances of a variable that can be considered. "]
["·         In case of differences, the standard should be regarded as the reference, not the spreadsheet. However, during the standard's drafting phase, shortcomings in the draft standard may have been detected and dealt with in the spreadsheets (ideally, such differences are marked)."]
["·         Note also that these spreadsheets are purely intended for testing and demonstration and therefore not aiming to be user friendly or to be protected against wrong or improper use. "]
["TERMS OF USE:"]
["·         The user is not allowed to redistribute a modified version of this spreadsheet."]
["·         The author(s) would appreciate your feed back on the spreadsheet via the comment sheets for the associated draft standard to be prepared by the national standards bodies during enquiry of the draft standard(s),"]
[]
[]
["SCOPE OF THIS SPREADSHEET:"]
["THIS SPREADSHEET PROVIDES ONE CALCULATION EXAMPLE"]
[]
[]
[]
[]
[]
["For those responsible for the drafting of this spreadsheet on the accompanying EPB standard"]
["Intended use of this document\nThose responsible for the drafting of actual individual EPB standards shall\n-  read and understand the following documents\n   - EN/TS 16628 Basic Principles (in short \"BP\")\n   - EN/TS 16629 Detailed Technical Rules (in short \"DTR\")\n   - Most recent draft of ISO 52000-1 cq EN 15603 (\"Overarching Standard\", in short \"OA\"))\n   - Most recent draft of ISO/TR 52000-2 cq EN/TR 15615 Technical report to overarching standard;\n- Prepare their individual EPB standard according to CEN rules, BP, DTR and OA\n- Prepare the accompanying technical report using the dedicated template\n- Prepare an accompanying XLS spreadsheet, to demonstrate inputs, output and calculation chain.\n\nThis sample excel spreadsheet provides a template to help in this task."]
["Why an Excel spreadsheet?\n\nTo demonstrate the validity and required data I/O for the calculation procedure defined in the standard:\n- list of all input needed --> sheet \"Method_input\"\n- list of intended output --> sheet  \"Method_output\"\n- calculation sequence --> sheet  \"Method_calculation\""]
["Method_input\nList in this sheet all the input required for the calculation in one time step.\nTHIS SHEET IS REQUIRED TO DEMONSTRATE THE REQUIRED DATA INPUT."]
["Method_calculation\nDetail in this sheet your calculation procedure. There should be one calculation in one cell for each equation in the standard.\nTHIS SHEET IS REQUIRED TO DEMONSTRATE THE CALCULATION PROCEDURE."]
["Method_output\nList in this sheet all the intended output of the procedure.\nTHIS SHEET IS REQUIRED TO DEMONSTRATE THE AVAILABLE DATA OUTPUT."]

{"sheet":"Method_input","index":1,"n_rows":30,"n_cols":10,"rows_kept":30,"cut":false,"hidden":false,"merged":[[0,0,0,8]]}
["THIS IS A MANDATORY SHEET\nAll input data for the method shall be listed here.\nIn the simplest version, values for data input in column E (blue background) is inserted manually.\nVarying data (green background) can be fed from the \"input_series\" sheet.\nIn this sample data sheet, product data (blue background) is linked to a sample catalogue built in the \"Detailed_input\" sheet"]
[]
[]
["Name","Symbol","Software name","Unit","Value","Range","Origin","Varying","Notes","Source/Origin standard"]
["Geometrial characteristics of the product"]
[null,null,null,null,null,null,null,"No"]
[null,null,null,null,null,null,null,"No"]
["Thermal characteristics of the componentes",null,null,null,null,null,null,"No"]
["Thermal transmittance glas","Ug","U_g","W/(m2K)",3,"0..10",null,"No",null,"see Table C.1 in ISO 52022-1"]
["Solar energy transmittance glas","g","g",null,0.75,"0..1",null,"No",null,"see Table C.1 in ISO 52022-1"]
["Solar transmittance glas","te","tau_e",null,0.82,"0..1",null,"No",null,"see Table C.1 in ISO 52022-1"]
["Solar reflectance glas to the exterior","re","rho_e_ext",null,0.15,"0..1",null,"No",null,"see Table C.1 in ISO 52022-1"]
["Solar reflectance glas to the interior","r´e","rho_e_int",null,0.15,"0..1",null,"No",null,"see Table C.1 in ISO 52022-1"]
["light transmittance glas","tv","tau_v",null,0.82,"0..1",null,"No",null,"see Table C.1 in ISO 52022-1"]
["light reflectance glas to the exterior","rv","rho_v_ext",null,0.15,"0..1",null,"No",null,"see Table C.1 in ISO 52022-1"]
["light reflectance glas to the interior","r´v","rho_v_int",null,0.15,"0..1",null,"No",null,"see Table C.1 in ISO 52022-1"]
["Solar transmittance blind","te,B","tau_eB",null,0.2,"0..0,5",null,"No",null,"see Table C.1 in ISO 52022-1"]
["Solar reflectance blind to the exterior","re,B","rho_eB_ext",null,0.4,"0,1..0,8",null,"No",null,"see Table C.1 in ISO 52022-1"]
["Solar reflectance blind to the interior","r´e,B","rho_eB_int",null,0.4,"0,1..0,8",null,"No",null,"see Table C.1 in ISO 52022-1"]
["light transmittance blind","tv,B","tau_vB",null,0.2,"0..0,5",null,"No",null,"see Table C.1 in ISO 52022-1"]
["light reflectance blind to the exterior","rv,B","rho_vB_ext",null,0.4,"0,1..0,8",null,"No",null,"see Table C.1 in ISO 52022-1"]
["light reflectance blind to the interior","r´v,B","rho_vB_int",null,0.4,"0,1..0,8",null,"No",null,"see Table C.1 in ISO 52022-1"]
[]
["Operating and boundary conditions",null,null,null,null,null,null,"No"]
[]
["Constants"]
["Thermal conductance","G1","g_1","W/(m2K)",5,"N/A"]
["Thermal conductance","G2","g_2","W/(m2K)",10,"N/A"]
["Thermal conductance","G3","g_3","W/(m2K)",30,"N/A"]
["Thermal conductance","G4","g_4","W/(m2K)",3,"N/A"]

{"sheet":"Method_calculation","index":2,"n_rows":20,"n_cols":7,"rows_kept":20,"cut":false,"hidden":false,"merged":[[0,0,0,6]]}
["THIS IS A MANDATORY SHEET\nOne time step calculation shall be described here.\nFor each calculation step (= 1 row) data for the formula in column D shall be taken from the \"Method_input\" sheet or previous calculation steps.\nInclude in the column \"Formula ref\" its number in the standard text. The example is based on EN 15316-4-1:2008\nCopy and paste a copy of the equation into column \"Formula\"\nUse the column note for information on the calculation"]
[]
["Description","Symbol","Unit","Value","Formula ref","Formula","Notes"]
["Thermal conductance for external positon","Gext","W/(m2K)",{"$f":"1/(1/U_g+1/g_1+1/g_2)","v":1.5789473684210527},"Chapter 6.4.2",null,"The calculation example is taken from TR 52022-2 Annex F"]
["Thermal conductance for internal positon","Gint","W/(m2K)",{"$f":"1/(1/U_g+1/g_3)","v":2.7272727272727275},"Chapter 6.4.2"]
["Thermal conductance for integrated positon","Gintegr","W/(m2K)",{"$f":"1/(1/U_g+1/g_4)","v":1.5},"Chapter 6.4.2"]
["Solar absorptance of the solar protection device","ae,B","/",{"$f":"1-tau_eB-rho_eB_ext","v":0.4},"Chapter 6.4.2","ae,B = 1 - te,B - re,B"]
[]
["External position of the solar protection device"]
["Total solar energy transmittance","gt","/",{"$f":"tau_eB*g+alpha_eB*g_ext/g_2+tau_eB*(1-g)*g_ext/g_1","v":0.22894736842105265},"(1)"]
["Total light transmittance","tv,t","/",{"$f":"tau_v*tau_vB/(1-rho_v_ext*rho_vB_int)","v":0.17446808510638301},"(4a)"]
["Total solar  transmittance","te,t","/",{"$f":"tau_e*tau_eB/(1-rho_e_ext*rho_eB_int)","v":0.17446808510638301},"(5a)"]
[]
["Internal position of the solar protection device"]
["Total solar energy transmittance","gt","/",{"$f":"g*(1-g*rho_eB_ext-alpha_eB*g_int/g_3)","v":0.49772727272727268},"(2)"]
["Total light transmittance","tv,t","/",{"$f":"tau_v*tau_vB/(1-rho_v_int*rho_vB_ext)","v":0.17446808510638301},"(4b)"]
["Total solar  transmittance","te,t","/",{"$f":"tau_e*tau_eB/(1-rho_e_int*rho_eB_ext)","v":0.17446808510638301},"(5b)"]
[]
["Integrated position of the solar protection device"]
["Total solar energy transmittance","gt","/",{"$f":"g*tau_eB+g*(alpha_eB+(1-g)*rho_eB_ext)*g_integr/g_4","v":0.33750000000000002},"(3)"]

{"sheet":"Method_output","index":3,"n_rows":16,"n_cols":9,"rows_kept":16,"cut":false,"hidden":false,"merged":[[0,0,0,8]]}
["THIS IS A MANDATORY SHEET\nOutput of one step calculation shall be indicated here.\nEach cell in the column value shall be a reference to a single cell in the \"Method_calculation\" sheet.\nThe macro will take the calculation step results and fill the values table in the \"Output_series\" sheet."]
[]
[]
["Name","Symbol","Software name","Unit","Value","Range","Intended destination","Varying","Notes"]
["External position of the solar protection device"]
["Total solar energy transmittance","gt","g_tot","-",{"$f":"Method_calculation!D10","v":0.22894736842105265},"0..1","EN 14351-1\nEN ISO 13790","No"]
["Total light transmittance","tv,t","tau_vis_tot","-",{"$f":"Method_calculation!D11","v":0.17446808510638301},"0..1","EN 14351-1\nEN ISO 13790","No"]
["Total solar  transmittance","te,t","tau_sol_tot","-",{"$f":"Method_calculation!D12","v":0.17446808510638301},"0..1","EN 14351-1\nEN ISO 13790","No"]
[]
["Internal position of the solar protection device"]
["Total solar energy transmittance","gt","g_tot","-",{"$f":"Method_calculation!D10","v":0.22894736842105265},"0..1","EN 14351-1\nEN ISO 13790","No"]
["Total light transmittance","tv,t","tau_vis_tot","-",{"$f":"Method_calculation!D11","v":0.17446808510638301},"0..1","EN 14351-1\nEN ISO 13790","No"]
["Total solar  transmittance","te,t","tau_sol_tot","-",{"$f":"Method_calculation!D12","v":0.17446808510638301},"0..1","EN 14351-1\nEN ISO 13790","No"]
[]
["Integrated position of the solar protection device"]
["Total solar energy transmittance","gt","g_tot","-",{"$f":"Method_calculation!D20","v":0.33750000000000002},"0..1","EN 14351-1\nEN ISO 13790","No"]

{"sheet":"Alternative Calculation sheet","index":4,"n_rows":28,"n_cols":9,"rows_kept":28,"cut":false,"hidden":false,"merged":[[20,2,20,4]]}
[]
[]
[]
[null,null,"ISO 52022-1 Solar energy and light transmittance of solar protection devices combined with glazing"]
[]
[]
[null,null,"Characteristics of the glazing",null,null,null,null,"External solar protection"]
[null,null,"U",3,"W/(m2K)",null,"gt","tv,t","te,t"]
[null,null,"g",0.75,"/",null,{"$f":"D22*D9+D25*H11/D17+D22*(1-D9)*H11/D16","v":0.22894736842105265},{"$f":"(D13*D26)/(1-D14*D28)","v":0.17446808510638301},{"$f":"D10*D22/(1-D11*D24)","v":0.17446808510638301}]
[null,null,"te",0.82,"/"]
[null,null,"re",0.15,"/",null,"Gext",{"$f":"1/(1/D8+1/D16+1/D17)","v":1.5789473684210527},"W/(m2K)"]
[null,null,"re´",0.15,"/"]
[null,null,"tv",0.82,"/"]
[null,null,"rv",0.15,"/"]
[null,null,"rv´",0.15,"/"]
[null,null,"G1",5,null,null,null,"Integrated solar protection"]
[null,null,"G2",10,null,null,"gt","tv,t","te,t"]
[null,null,"G3",30,null,null,{"$f":"D9*D22+D9*(D25+(1-D9)*D23)*H20/D19","v":0.33750000000000002},"/","/"]
[null,null,"G4",3]
[null,null,null,null,null,null,"Gintegr",{"$f":"1/(1/D8+1/D19)","v":1.5},"W/(m2K)"]
[null,null,"Characteristics of the solar protection"]
[null,null,"te,B",0.2,"/",null,null,"Internal solar protection"]
[null,null,"re,B",0.4,"/",null,"gt","tv,t","te,t"]
[null,null,"r´e,B",0.4,"/",null,{"$f":"D9*(1-D9*D23-D25*H26/D18)","v":0.49772727272727268},{"$f":"(D13*D26)/(1-D15*D27)","v":0.17446808510638301},{"$f":"D10*D22/(1-D12*D23)","v":0.17446808510638301}]
[null,null,"ae,B",{"$f":"1-D22-D23","v":0.4},"/"]
[null,null,"tv,B",0.2,"/",null,"Gint",{"$f":"1/(1/D8+1/D18)","v":2.7272727272727275},"W/(m2K)"]
[null,null,"rv,B",0.4,"/"]
[null,null,"r´v,B",0.4,"/"]

{"sheet":"History","index":5,"n_rows":6,"n_cols":4,"rows_kept":6,"cut":false,"hidden":false,"merged":[]}
[]
[null,"Date","Version scope","Changes, notes"]
[null,"2014-05-15","input, output variables"]
[null,"2015-03-06","Calculation added"]
[null,"2015-05-15","draft final for distribution in TC89"]
[null,"2015-06-15","Final draft accompanying the DIS, ready for distribution as CEN TEC 89 N document and for public distribution"]